{"text_format":"2","workbook":"xlsx","n_sheets":8,"sheets":["様式","記入例","記入表 （レベル１２非公開用）","記入表 （レベル３共有版）","記入表 （レベル４５公開版）","記載例","記入表","Work"],"not_rendered":{"charts":0,"images":0,"macros":0,"external_links":0,"defined_names":2,"comments":2,"pivot_tables":0},"unopened":[],"bounds":{"document_bytes":16777216,"sheet_cells":100000,"run_cost":"one","rows_first":2000,"rows_last":500,"rows_between":2000,"halvings":0,"cell_chars":16384,"cell_head_chars":4096},"cells_cut":0,"cells_raw":0,"read":"whole","date_system":"1900"}

{"sheet":"様式","index":0,"n_rows":33,"n_cols":38,"rows_kept":33,"cut":false,"hidden":false,"merged":[[6,17,6,23],[7,3,7,4],[8,3,8,4],[21,15,21,17],[10,3,10,4],[11,3,11,4],[12,3,12,4],[13,3,13,4],[14,3,14,4],[15,3,15,4],[16,3,16,4],[17,3,17,4],[19,15,19,23],[20,1,20,8],[20,15,20,23],[9,3,9,4],[4,1,4,2],[4,3,4,5],[6,1,6,8],[6,9,6,12],[2,1,2,2],[2,11,2,12],[3,1,3,2],[3,3,3,5],[3,11,3,12]]}
[null,"様式〇（別紙）データマネジメントプラン"]
[]
[null,"区別",null,"新規　/　修正または追記　　　　　　　　　　　　　　　　   注１）",{"$nulls":6},"提出日","令和　　　年　　　月　　　日"]
[null,"契約締結日",null,"令和　　　年　　　月　　　日",{"$nulls":6},"法人名等","〇〇研究所"]
[null,"契約件名"]
[{"$nulls":5},"（注１）新規か修正・追記かを選択すること。"]
[null,"必須記入項目",{"$nulls":7},"公開レベル３又は４を選択した場合、必須　（注３）",{"$nulls":7},"公開レベル３又は４を選択した場合、必須"]
[null,"研究開発データNo.","研究開発データ\n名称（注２）","研究開発データの説明",null,"管理者","分類","公開レベル","秘匿理由","秘匿期間","取得者","取得方法","その他",null,null,"研究開発データNo.","研究開発データ\n名称（注２）","研究開発データの想定利活用用途","研究開発データの利活用・提供方針","円滑な提供に向けた取り組み","リポジトリ　","想定データ量","加工方針","その他",{"$nulls":12},"名前","分野"]
[null,1,{"$nulls":13},1,{"$f":"IF(C9=0,\"\",C9)","v":""},null,null,null,"期間中：\n終了後：",{"$nulls":15},"小原","実験"]
[null,2,{"$nulls":13},2,{"$f":"IF(C10=0,\"\",C10)","v":""},null,null,null,"期間中：\n終了後：",{"$nulls":15},"小原","実験"]
[null,3,{"$nulls":13},3,"",null,null,null,"期間中：\n終了後："]
[null,4,{"$nulls":13},4,"",null,null,null,"期間中：\n終了後："]
[null,5,{"$nulls":13},5,"",null,null,null,"期間中：\n終了後："]
[null,6,{"$nulls":13},6,"",null,null,null,"期間中：\n終了後："]
[null,7,{"$nulls":13},7,"",null,null,null,"期間中：\n終了後："]
[null,8,{"$nulls":13},8,"",null,null,null,"期間中：\n終了後："]
[null,9,{"$nulls":13},9,"",null,null,null,"期間中：\n終了後："]
[null,10,{"$nulls":13},10,"",null,null,null,"期間中：\n終了後：",{"$nulls":15},"小原","実験"]
[]
[null,"委託研究開発におけデータマネジメントに関する運用ガイドラインガイドライン(H29年12月経済産業省) を参照の上、記入すること。"]
[null,"注２）再委託先の取得するデータについても記入すること。\n注３）当初、公開レベル１又は２の場合でも、プロジェクトの進展に伴い、公開レベル３又は４に修正された場合は、公開レベル３又は４の必須項目を記入すること。\n注４）データの個数が１１以上ある場合は、二枚目のシートを作成すること。\n　"]
[]
[]
[]
[]
[]
[]
[{"$nulls":8},"秘匿しない",null,"秘匿期間なし"]
[{"$nulls":6},"委託者指定データ","レベル４\n（広範な提供・利活用）","事業化に向けて市場の競争力を確保するため",null,"PJ終了後１年間未満",null,"1GB未満"]
[{"$nulls":6},"自主管理データ","レベル３\n（PJ参加者以外の第三者へも提供可能）","特許出願や論文発表を行うため",null,"PJ終了後３年間未満",null,"１GB以上10GB未満"]
[{"$nulls":7},"レベル２\n（PJ参加者間のみで共有可能）","取得又は収集したデータの利用許諾等に制限があるため",null,"PJ終了後３年間以上",null,"10GB以上100GB未満"]
[{"$nulls":7},"レベル１\n（自者のみで利活用)","安全保障上の理由のため",null,"PJの進展に応じて判断する",null,"100GB以上"]
[{"$nulls":8},"その他（「その他」欄に具体的に記載）",null,"その他（「その他」欄に具体的に記載）"]

{"sheet":"記入例","index":1,"n_rows":35,"n_cols":38,"rows_kept":35,"cut":false,"hidden":false,"merged":[[21,15,21,17],[6,17,6,23],[6,1,6,8],[6,9,6,12],[19,15,19,23],[20,15,20,23],[7,3,7,4],[8,3,8,4],[9,3,9,4],[16,3,16,4],[17,3,17,4],[15,3,15,4],[10,3,10,4],[13,3,13,4],[14,3,14,4],[12,3,12,4],[11,3,11,4],[20,1,20,8],[2,1,2,2],[2,11,2,12],[3,1,3,2],[3,3,3,5],[3,11,3,12],[4,1,4,2],[4,3,4,5]]}
[null,"様式〇（別紙）データマネジメントプラン"]
[]
[null,"区別",null,"新規　/　修正または追記　　　　　　　　　　　　　　　　   注１）",{"$nulls":6},"提出日","令和　　　年　　　月　　　日"]
[null,"契約締結日",null,"令和　　　年　　　月　　　日",{"$nulls":6},"法人名等","〇〇研究所"]
[null,"契約件名"]
[{"$nulls":5},"（注１）新規か修正・追記かを選択すること。"]
[null,"必須記入項目",{"$nulls":7},"公開レベル３又は４を選択した場合、必須　（注３）",{"$nulls":7},"公開レベル３又は４を選択した場合、必須"]
[null,"研究開発データNo.","研究開発データ\n名称（注２）","研究開発データの説明",null,"管理者","分類","公開レベル","秘匿理由","秘匿期間","取得者","取得方法","その他",null,null,"研究開発データNo.","研究開発データ\n名称（注２）","研究開発データの想定利活用用途","研究開発データの利活用・提供方針","円滑な提供に向けた取り組み","リポジトリ　","想定データ量","加工方針","その他",{"$nulls":12},"名前","分野"]
[null,1,"〇〇実証においてセンサより撮像したデータ及び関連データ","〇〇実証においてセンサより撮像したデータであり、道路の画像データ",null,"〇〇研究所","委託者指定データ","レベル４\n（広範な提供・利活用）","秘匿しない","秘匿期間なし","〇〇研究所","プロジェクトにおいてセンサを用いて自ら取得",null,null,null,1,{"$f":"IF(C9=0,\"\",C9)","v":"〇〇実証においてセンサより撮像したデータ及び関連データ"},"交通状況の分析ソフトを開発する他のプロジェクト参加者と共有することで、プロジェクトの目的であるソフトの開発に貢献する。また、事業終了後も、人工知能技術における学習用データセットへの応用可能性が十分に考えられる。","プロジェクト期間中：同一プロジェクト参加者には無償で提供。\nプロジェクト終了後：一定期間後に広く公表する。但しデータのクレジット表記を条件とする。","プロジェクト参加者以外の者への提供時期は市場での競争力を踏まえ、委託者と協議して決定する。","期間中：自社に保存\n終了後：自社に保存","10GB以上100GB未満","ファイル形式：Exsel　メタデータ：日付、気温、天候等\nその他：個人情報を含むデータは他者に提供する場合には本人の同意を得ることや特定の個人を識別できないように加工することが必要になることに留意する","　　例えば、サンプルデータやデータ提供サイトのURLを記載する。　",{"$nulls":12},"小原","実験"]
[null,2,"○○のシミュレーションデータ","〇〇を予想するためシュミレーションによって得られた〇〇データ",null,"同上","自主管理データ","レベル３\n（PJ参加者以外の第三者へも提供可能）","事業化に向けて市場の競争力を確保するため","PJ終了後１年間未満","同上","シミュレーションソフトを用いて自ら取得",null,null,null,2,{"$f":"IF(C10=0,\"\",C10)","v":"○○のシミュレーションデータ"},"シミュレーション結果は他のプロジェクト参加者で共有する。","プロジェクト期間中：同一プロジェクト参加者には無償で提供。\nプロジェクト終了後：一定期間後に事業の実施上有益なものに対しての提供を開始。但しデータのクレジット表記を条件とする。","関連するプログラム製作者とセットでプロジェクト参加者以外の者へ有償または無償で利用許諾できないか検討する。また、プロジェクト参加者以外の者への提供時期は市場での競争力を鑑み、プロジェクト終了後1年後を想定。","期間中：自社に保存\n終了後：自社に保存","１GB以上10GB未満","メタデータ：環境条件と計算結果概要\nその他：最適なフォーマットは他のPj参加者と協議する。\n","　　例えば、サンプルデータやデータ提供サイトのURLを記載する。　",{"$nulls":12},"小原","実験"]
[null,3,"○○のシミュレーションデータ","〇〇を予想するためシュミレーションによって得られた〇〇データ",null,"同上","自主管理データ","レベル２\n（PJ参加者間のみで共有可能）","事業化に向けて市場の競争力を確保するため",{"$nulls":6},3,"○○のシミュレーションデータ",null,null,null,"期間中：\n終了後："]
[null,4,"○○のシミュレーションデータ","〇〇を予想するためシュミレーションによって得られた〇〇データ",null,"同上","自主管理データ","レベル２\n（PJ参加者間のみで共有可能）","取得又は収集したデータの利用許諾等に制限があるため",{"$nulls":6},4,"○○のシミュレーションデータ",null,null,null,"期間中：\n終了後："]
[null,5,"○○のシミュレーションデータ","〇〇を予想するためシュミレーションによって得られた〇〇データ",null,"同上","自主管理データ","レベル２\n（PJ参加者間のみで共有・利活用予定）","取得又は収集したデータの利用許諾等に制限があるため",{"$nulls":6},5,"○○のシミュレーションデータ",null,null,null,"期間中：\n終了後："]
[null,6,{"$nulls":13},6,"",null,null,null,"期間中：\n終了後："]
[null,7,{"$nulls":13},7,"",null,null,null,"期間中：\n終了後："]
[null,8,{"$nulls":13},8,"",null,null,null,"期間中：\n終了後："]
[null,9,{"$nulls":13},9,"",null,null,null,"期間中：\n終了後："]
[null,10,{"$nulls":13},10,"",null,null,null,"期間中：\n終了後：",{"$nulls":15},"小原","実験"]
[]
[null,"委託研究開発におけデータマネジメントに関する運用ガイドラインガイドライン(H29年12月経済産業省) を参照の上、記入すること。"]
[null,"注２）再委託先の取得するデータについても記入すること。\n注３）当初、公開レベル１又は２の場合でも、プロジェクトの進展に伴い、公開レベル３又は４に修正された場合は、公開レベル３又は４の必須項目を記入すること。\n注４）データの個数が１１以上ある場合は、二枚目のシートを作成すること。\n　"]
[]
[]
[]
[]
[]
[]
[{"$nulls":8},"秘匿しない",null,"秘匿期間なし"]
[{"$nulls":6},"委託者指定データ","レベル４\n（広範な提供・利活用）","事業化に向けて市場の競争力を確保するため",null,"PJ終了後１年間未満",null,"1GB未満"]
[{"$nulls":6},"自主管理データ","レベル３\n（PJ参加者以外の第三者へも提供可能）","特許出願や論文発表を行うため",null,"PJ終了後３年間未満",null,"１GB以上10GB未満"]
[{"$nulls":7},"レベル２\n（PJ参加者間のみで共有可能）","取得又は収集したデータの利用許諾等に制限があるため",null,"PJ終了後３年間以上",null,"10GB以上100GB未満"]
[{"$nulls":7},"レベル１\n（自者のみで利活用)","安全保障上の理由のため",null,"PJの進展に応じて判断する",null,"100GB以上"]
[{"$nulls":8},"その他（「その他」欄に具体的に記載）",null,"その他（「その他」欄に具体的に記載）"]
[]
[{"$nulls":8},"その他（「その他」欄に具体的に記載）"]

{"sheet":"記入表 （レベル１２非公開用）","index":2,"n_rows":55,"n_cols":22,"rows_kept":55,"cut":false,"hidden":true,"merged":[[53,3,53,15],[12,14,13,14],[12,15,13,15],[12,8,13,8],[54,3,54,15],[23,1,23,19],[37,3,37,19],[26,3,26,19],[12,18,13,18],[12,5,13,5],[12,7,13,7],[12,16,13,16],[12,0,13,0],[12,1,13,1],[12,2,13,2],[12,3,13,3],[12,4,13,4],[12,21,13,21],[12,11,13,11],[25,3,25,19],[12,12,13,12],[12,13,13,13],[12,9,13,9],[12,20,13,20],[7,1,7,19],[12,17,13,17],[12,6,13,6],[51,3,51,15],[52,3,52,15],[12,19,13,19],[12,10,13,10]]}
[null,"  　               領域　（　　　チーム　　　グループ）　データマネジメントプラン　"]
[]
[null,null,null,"　",null,"　"]
[null,null,null,"★非公開データ",null,"　",{"$nulls":4},"　","　",null,"レベル１：","個人管理(論文のエビデンス）"]
[null,null,null,"レベル１：","個人管理(論文のエビデンス）","　","個人管理(論文のエビデンス）",null,null,null,"　","　",null,"レベル２：","機関リポジトリに登録(キーワード付与）"]
[null,null,null,"レベル２：","機関リポジトリに登録(キーワード付与）","　","機関リポジトリに登録(キーワード付与）",null,null,null,"　","　",null,"レベル３：","共同研究者、研究プロジェクト等でのデータ共有"]
[{"$nulls":10},"　","　",null,"レベル５：","レベル４に加え、恒常的サービス、研究終了後に維持管理活用を行う機関"]
[null,"１．研究データの保存・管理、公開/非公開に係わる方針と公開可能データの提供方法・体制\n（非公開データ：レベル１，２用）"]
[]
[]
[]
[]
["番号","ﾃﾞｰﾀNo.","分類","登録データ名","収録データ概要","レベル\n（公開/非公開）","データの保存管理及び公開・非公開の方針（公開・登録時期、保存場所含む）","キーワード","登録時期","データ維持\n保存期間\n管理内容等","データ\nフォーマット","登録場所\n（個人PC名、登録サーバー名など）","関係論文\n(採択後記入）","共同研究・\nﾌﾟﾛｼﾞｪｸﾄ名","共有条件","公開方法\n（URLを記載）","登録条件","公開研究データの想定利用用途","公開研究データの利活用促進に向けた取り組み（研究者自身の取り組み）","その他特記事項／備考","名前","分野"]
[]
[1,1,"　","　","　","　","　","　","　　","　","　","　",{"$nulls":5},"・データ駆動型研究アプローチ（予測・シミュレーション等）のために研究データを利用する\n・第三者が自らの研究データを比較評価するための参照先として研究データを利用する","① 研究データの信頼性向上への取組み：実験条件の追記、論文等出典情報の明記等\n② 提供者自身へのフィードバック：利用目的・成果公表時出典の明記、定期的な意見聴取等",null,"小原","実験"]
[2,null,"実験データ","計算機実験、データ科学から得られた生データ","X線のエネルギー、試料の厚み、組成、密度も記載","レベル１\n(非公開）","データ所有者と連携して、さらなる研究の展開が期待される場合には公開",null,"計算終了後",null,"テキスト","PC",{"$nulls":5},"・データ駆動型研究アプローチ（予測・シミュレーション等）のために研究データを利用する\n・第三者が自らの研究データを比較評価するための参照先として研究データを利用する","① 研究データの信頼性向上への取組み：実験条件の追記、論文等出典情報の明記等\n② 提供者自身へのフィードバック：利用目的・成果公表時出典の明記、定期的な意見聴取等",null,"小原","実験"]
[3,null,"実験データ","放射光X線回折生データ_2","X線のエネルギー、試料の厚み、組成、密度も記載","レベル２\n(非公開）","データ所有者と連携して、さらなる研究の展開が期待される場合には公開","物質名、化学式、元素名","論文掲載時",null,"テキスト","(例)JSTCenrtal\n不規則系物質データベース１_1",{"$nulls":5},"・データ駆動型研究アプローチ（予測・シミュレーション等）のために研究データを利用する\n・第三者が自らの研究データを比較評価するための参照先として研究データを利用する","① 研究データの信頼性向上への取組み：実験条件の追記、論文等出典情報の明記等\n② 提供者自身へのフィードバック：利用目的・成果公表時出典の明記、定期的な意見聴取等",null,"小原","実験"]
[4,2,"　","　","　","　","　","　","　","　","　","　",null,"　",null,null,null,"・データ駆動型研究アプローチ（予測・シミュレーション等）のために研究データを利用する\n・第三者が自らの研究データを比較評価するための参照先として研究データを利用する","① 研究データの信頼性向上への取組み：実験条件の追記、論文等出典情報の明記等\n② 提供者自身へのフィードバック：利用目的・成果公表時出典の明記、定期的な意見聴取等",null,"小原","実験"]
[5,3,"　","　","　","　","　","　","　","　","　","　","　","　","　","　","　","　","　","　","小原","実験"]
[6,4,"　","　","　","　","　","　","　","　","　","　","　","　","　","　","　","　","　","　","小原","実験"]
[7,null,"　","　","　","　","　","　","　","　","　","　","　","　","　","　","　","　","　","　","小原","実験"]
[]
[null,null,null,"　"]
[null,"２．公開研究データの想定利用用途（公開予定、将来予測含む）"]
[]
[null,"データNo.",null,"内容"]
[null,1]
[null,2]
[null,3]
[]
[]
[]
[]
[]
[]
[null,"３．公開研究データ（登録研究者）の利活用促進に向けた取り組み"]
[]
[null,"データNo.",null,"内容"]
[null,1]
[null,2]
[null,3]
{"$rows_empty":10}
[null,null,"　"]
[]
[null,null,"　"]
[null,null,"　"]

{"sheet":"記入表 （レベル３共有版）","index":3,"n_rows":60,"n_cols":23,"rows_kept":60,"cut":false,"hidden":true,"merged":[[21,0,22,0],[21,1,22,1],[21,2,22,2],[21,3,22,3],[21,4,22,4],[21,20,22,20],[21,21,22,21],[21,12,22,12],[21,13,22,13],[21,14,22,14],[21,15,22,15],[21,16,22,16],[21,17,22,17],[12,1,12,19],[42,1,42,19],[44,3,44,19],[45,3,45,19],[56,3,56,19],[21,18,22,18],[21,19,22,19],[21,6,22,6],[21,7,22,7],[21,8,22,8],[21,9,22,9],[21,10,22,10],[21,11,22,11],[21,5,22,5]]}
[null,"　　　領域　（　　　チーム　　　グループ）　データマネジメントプラン　"]
[]
[null,null,"〇管理方針：以下の5段階とする",null,null,"　"]
[null,null,"　","　",{"$nulls":6},"　","　",null,"　","　"]
[null,null,"★非公開データ",null,"レベル１：個人管理(論文のエビデンス）",{"$nulls":5},"　","　",null,"　","　"]
[{"$nulls":4},"レベル２：機関リポジトリに登録"]
[{"$nulls":4},"レベル３：共同研究者、研究プロジェクト等でのデータ共有"]
[null,null,"★公開データ",null,"レベル４：学協会、公的DB、私的DB等に登録"]
[{"$nulls":4},"レベル５：レベル４に加え、恒常的サービス、研究終了後に維持管理活用を行う機関"]
[]
[null,null,null,"　","　",{"$nulls":5},"　","　"]
[{"$nulls":10},"　","　",null,"　","　"]
[null,"１．研究データの保存・管理方針（公開・登録時期、保存場所含む）"]
[]
[]
[]
[]
[]
[]
[null,"2．データ共有方針（レベル３の場合：表記入）"]
[]
["番号","ﾃﾞｰﾀNo.","分類","登録データ名","収録データ概要","レベル\n（公開/非公開）","データの保存管理及び公開・非公開の方針（公開・登録時期、保存場所含む）","キーワード","登録時期","データ維持\n保存期間\n管理内容等","データ\nフォーマット","登録場所\n（個人PC名、登録サーバー名など）","関係論文\n(採択後記入）","共同研究・\nﾌﾟﾛｼﾞｪｸﾄ名","共有条件","公開方法\n（URLを記載）","登録条件","公開研究データの想定利用用途","公開研究データの利活用促進に向けた取り組み（研究者自身の取り組み）","その他特記事項／備考","名前","分野"]
[]
[1,1,"　","　","　","　","　","　","　　","　","　","　",{"$nulls":5},"・データ駆動型研究アプローチ（予測・シミュレーション等）のために研究データを利用する\n・第三者が自らの研究データを比較評価するための参照先として研究データを利用する","① 研究データの信頼性向上への取組み：実験条件の追記、論文等出典情報の明記等\n② 提供者自身へのフィードバック：利用目的・成果公表時出典の明記、定期的な意見聴取等",null,"小原","実験"]
[2,null,"実験データ","計算機実験、データ科学から得られた生データ","X線のエネルギー、試料の厚み、組成、密度も記載","レベル１\n(非公開）","データ所有者と連携して、さらなる研究の展開が期待される場合には公開",null,"計算終了後",null,"テキスト","PC",{"$nulls":5},"・データ駆動型研究アプローチ（予測・シミュレーション等）のために研究データを利用する\n・第三者が自らの研究データを比較評価するための参照先として研究データを利用する","① 研究データの信頼性向上への取組み：実験条件の追記、論文等出典情報の明記等\n② 提供者自身へのフィードバック：利用目的・成果公表時出典の明記、定期的な意見聴取等",null,"小原","実験"]
[3,null,"実験データ","放射光X線回折生データ_2","X線のエネルギー、試料の厚み、組成、密度も記載","レベル２\n(非公開）","データ所有者と連携して、さらなる研究の展開が期待される場合には公開","物質名、化学式、元素名","論文掲載時",null,"テキスト","(例)JSTCenrtal\n不規則系物質データベース１_1",{"$nulls":5},"・データ駆動型研究アプローチ（予測・シミュレーション等）のために研究データを利用する\n・第三者が自らの研究データを比較評価するための参照先として研究データを利用する","① 研究データの信頼性向上への取組み：実験条件の追記、論文等出典情報の明記等\n② 提供者自身へのフィードバック：利用目的・成果公表時出典の明記、定期的な意見聴取等",null,"小原","実験"]
[4,2,"　","　","　","　","　","　","　","　","　","　",null,"　",null,null,null,"・データ駆動型研究アプローチ（予測・シミュレーション等）のために研究データを利用する\n・第三者が自らの研究データを比較評価するための参照先として研究データを利用する","① 研究データの信頼性向上への取組み：実験条件の追記、論文等出典情報の明記等\n② 提供者自身へのフィードバック：利用目的・成果公表時出典の明記、定期的な意見聴取等",null,"小原","実験"]
[5,3,"　","　","　","　","　","　","　","　","　","　","　","　","　","　","　","　","　","　","小原","実験"]
[6,4,"　","　","　","　","　","　","　","　","　","　","　","　","　","　","　","　","　","　","小原","実験"]
[7,null,"　","　","　","　","　","　","　","　","　","　","　","　","　","　","　","　","　","　","小原","実験"]
[8,5,"　","　","　","　","　","　","　","　","　","　","　","　","　","　","　","　","　","　","小原","実験"]
[9,null,"　","　","　","　","　","　","　","　","　","　","　","　","　","　","　","　","　","　","大久保","実験"]
[10,6,"　","　","　","　","　","　","　","　","　","　","　","　","　","　","　","　","　","　","塚田","理論"," "]
[11,null,"　","　","　","　","　","　","　","　","　","　","　","　","　","　","　","　","　","　","小林","化学(理論）"]
[12,null,"　","　","　","　","　","　","　","　","　","　","　","　","　","　","　","　","　","　","是常","理論"]
[13,null,"　","　","　","　","　","　","　","　","　","　","　","　","　","　","　","　","　","　","是常","理論"]
[14,null,"　","　","　","　","　","　","　","　","　","　","　","　","　","　","　","　","　","　","袖山","計算"]
[15,null,"　","　","　","　","　","　","　","　","　","　","　","　","　","　","　","　","　","　","袖山","計算"]
[16,7,"　","　","　","　","　","　","　","　","　","　","　","　","　","　","　","　","　","　","瀧川","情報科学"]
[17,8,"　","　","　","　","　","　","　","　","　","　","　","　","　","　","　","　","　","　","烏山","情報科学"]
[]
[]
[null,"２．公開研究データの想定利用用途（公開予定、将来予測含む）"]
[]
[null,"データNo.",null,"内容"]
[null,1]
[null,2]
[null,3]
[]
[]
[]
[]
[]
[]
[null,"３．公開研究データ（登録研究者）の利活用促進に向けた取り組み"]
[]
[null,"データNo.",null,"内容"]
[null,1]
[null,2]
[null,3]

{"sheet":"記入表 （レベル４５公開版）","index":4,"n_rows":40,"n_cols":22,"rows_kept":40,"cut":false,"hidden":true,"merged":[[11,0,12,0],[11,1,12,1],[11,2,12,2],[11,3,12,3],[11,4,12,4],[11,20,12,20],[11,21,12,21],[11,12,12,12],[11,13,12,13],[11,14,12,14],[11,15,12,15],[11,16,12,16],[11,17,12,17],[6,1,6,19],[22,1,22,19],[25,3,25,19],[36,3,36,19],[24,3,24,19],[11,18,12,18],[11,19,12,19],[11,6,12,6],[11,7,12,7],[11,8,12,8],[11,9,12,9],[11,10,12,10],[11,11,12,11],[11,5,12,5]]}
[null,"　　　領域　（　　　チーム　　　グループ）　データマネジメントプラン　"]
[]
[null,null,null,"★公開データ",{"$nulls":5},"　","　",null,"　","　","レベル４：","　"]
[null,null,null,"レベル４：","学協会、公的DB、私的DB等に登録",{"$nulls":4},"　","　",null,"　","　","レベル５：","　","　"]
[null,null,null,"レベル５：","レベル４に加え、恒常的サービス、研究終了後に維持管理活用を行う機関",{"$nulls":5},"　","　",null,"　","　","　","　"]
[]
[null,"１．研究データの保存・管理、公開/非公開に係わる方針と公開可能データの提供方法・体制　\n　　　　　（公開データ：レベル４，５）"]
[]
[]
[]
[]
["番号","ﾃﾞｰﾀNo.","分類","登録データ名","収録データ概要","レベル\n（公開/非公開）","データの保存管理及び公開・非公開の方針（公開・登録時期、保存場所含む）","キーワード","登録時期","データ維持\n保存期間\n管理内容等","データ\nフォーマット","登録場所\n（個人PC名、登録サーバー名など）","関係論文\n(採択後記入）","共同研究・\nﾌﾟﾛｼﾞｪｸﾄ名","共有条件","公開方法\n（URLを記載）","登録条件","公開研究データの想定利用用途","公開研究データの利活用促進に向けた取り組み（研究者自身の取り組み）","その他特記事項／備考","名前","分野"]
[]
[1,1,"　","　","　","　","　","　","　　","　","　","　",{"$nulls":5},"・データ駆動型研究アプローチ（予測・シミュレーション等）のために研究データを利用する\n・第三者が自らの研究データを比較評価するための参照先として研究データを利用する","① 研究データの信頼性向上への取組み：実験条件の追記、論文等出典情報の明記等\n② 提供者自身へのフィードバック：利用目的・成果公表時出典の明記、定期的な意見聴取等",null,"小原","実験"]
[2,null,"実験データ","計算機実験、データ科学から得られた生データ","X線のエネルギー、試料の厚み、組成、密度も記載","レベル１\n(非公開）","データ所有者と連携して、さらなる研究の展開が期待される場合には公開",null,"計算終了後",null,"テキスト","PC",{"$nulls":5},"・データ駆動型研究アプローチ（予測・シミュレーション等）のために研究データを利用する\n・第三者が自らの研究データを比較評価するための参照先として研究データを利用する","① 研究データの信頼性向上への取組み：実験条件の追記、論文等出典情報の明記等\n② 提供者自身へのフィードバック：利用目的・成果公表時出典の明記、定期的な意見聴取等",null,"小原","実験"]
[3,null,"実験データ","放射光X線回折生データ_2","X線のエネルギー、試料の厚み、組成、密度も記載","レベル２\n(非公開）","データ所有者と連携して、さらなる研究の展開が期待される場合には公開","物質名、化学式、元素名","論文掲載時",null,"テキスト","(例)JSTCenrtal\n不規則系物質データベース１_1",{"$nulls":5},"・データ駆動型研究アプローチ（予測・シミュレーション等）のために研究データを利用する\n・第三者が自らの研究データを比較評価するための参照先として研究データを利用する","① 研究データの信頼性向上への取組み：実験条件の追記、論文等出典情報の明記等\n② 提供者自身へのフィードバック：利用目的・成果公表時出典の明記、定期的な意見聴取等",null,"小原","実験"]
[4,2,"　","　","　","　","　","　","　","　","　","　",null,"　",null,null,null,"・データ駆動型研究アプローチ（予測・シミュレーション等）のために研究データを利用する\n・第三者が自らの研究データを比較評価するための参照先として研究データを利用する","① 研究データの信頼性向上への取組み：実験条件の追記、論文等出典情報の明記等\n② 提供者自身へのフィードバック：利用目的・成果公表時出典の明記、定期的な意見聴取等",null,"小原","実験"]
[5,3,"　","　","　","　","　","　","　","　","　","　","　","　","　","　","　","　","　","　","小原","実験"]
[6,4,"　","　","　","　","　","　","　","　","　","　","　","　","　","　","　","　","　","　","小原","実験"]
[7,null,"　","　","　","　","　","　","　","　","　","　","　","　","　","　","　","　","　","　","小原","実験"]
[]
[null,null,null,"　"]
[null,"２．公開研究データの想定利用用途（公開予定、将来予測含む）"]
[]
[null,"データNo.",null,"内容"]
[null,1]
[null,2]
[null,3]
[]
[]
[]
[]
[]
[]
[null,"３．公開研究データ（登録研究者）の利活用促進に向けた取り組み"]
[]
[null,"データNo.",null,"内容"]
[null,1]
[null,2]
[null,3]

{"sheet":"記載例","index":5,"n_rows":59,"n_cols":23,"rows_kept":59,"cut":false,"hidden":true,"merged":[[62,2,62,15],[63,2,63,15],[58,2,58,15],[59,2,59,15],[60,2,60,15],[61,2,61,15],[57,2,57,15],[42,2,42,15],[45,2,45,15],[46,2,46,15],[43,2,43,15],[56,2,56,15],[53,2,53,15],[54,2,54,15],[55,2,55,15],[51,2,51,15],[52,2,52,15],[50,2,50,15],[48,2,48,19],[44,2,44,15],[47,2,47,15],[30,2,30,19],[31,2,31,19],[40,2,40,15],[41,2,41,15],[38,2,38,15],[39,2,39,15],[33,2,33,11],[34,2,34,19],[37,2,37,15],[32,2,32,19],[36,2,36,15],[9,0,10,0],[9,2,10,2],[9,5,10,5],[9,10,10,10],[9,11,10,11],[9,7,10,7],[9,4,10,4],[9,3,10,3],[9,1,10,1],[9,6,10,6],[9,21,10,21],[9,8,10,8],[9,18,10,18],[9,17,10,17],[9,19,10,19],[9,14,10,14],[9,15,10,15],[9,20,10,20],[9,12,10,12],[9,13,10,13],[9,9,10,9],[9,16,10,16]]}
[null,null,"＊＊＊領域　（＊＊＊チーム　＊＊グループ）　データマネジメントプラン　（記載例）　"]
[]
[{"$nulls":5},"〇管理方針：以下の5段階とする"]
[{"$nulls":5},"★非公開データ",{"$nulls":4},"レベル１：","個人管理(論文のエビデンス）"]
[{"$nulls":10},"レベル２：","機関リポジトリに登録(キーワード付与）"]
[{"$nulls":10},"レベル３：","共同研究者、研究プロジェクト等でのデータ共有"]
[{"$nulls":5},"★公開データ",{"$nulls":4},"レベル４：","学協会、公的DB、私的DB等に登録"]
[null,null,"　",{"$nulls":7},"レベル５：","レベル４に加え、恒常的サービス、研究終了後に維持管理活用を行う機関"]
[null,null,"１．研究データの保存・管理、公開/非公開に係わる方針と公開可能データの提供方法・体制"]
["番号","ﾃﾞｰﾀNo.","登録データ名","収録データ概要","分類","レベル\n（公開/非公開）","公開・非公開の方針","キーワード","登録時期","データ維持\n保存期間\n管理内容等","データ\nフォーマット","登録場所\n（個人PC名、登録サーバー名など）","関係論文\n(採択後記入）","共同研究・\nﾌﾟﾛｼﾞｪｸﾄ名","共有条件","公開方法\n（URLを記載）","登録条件","公開研究データの想定利用用途","公開研究データの利活用促進に向けた取り組み（研究者自身の取り組み）","その他特記事項／備考","名前","分野"]
[]
[1,1,"***生データ","**のエネルギー、試料の厚み、組成、密度も記載","実験データ","レベル１\n(非公開）","・当面は「レベル1 (非公開) 個人管理\n・データ所有者と連携して、さらなる研究の展開が期待される場合には公開","ガラス、液体、アモルファス\n*線\n","実験終了後","論文発表後10年間","テキスト","個人PC:\nToshiba　Dynabook　L501",{"$nulls":5},"・データ駆動型研究アプローチ（予測・シミュレーション等）のために研究データを利用する\n・第三者が自らの研究データを比較評価するための参照先として研究データを利用する","① 研究データの信頼性向上への取組み：実験条件の追記、論文等出典情報の明記等\n② 提供者自身へのフィードバック：利用目的・成果公表時出典の明記、定期的な意見聴取等",null,"小原","実験"]
[2,null,"計算機実験、データ科学から得られた生データ","X線のエネルギー、試料の厚み、組成、密度も記載","実験データ","レベル１\n(非公開）","データ所有者と連携して、さらなる研究の展開が期待される場合には公開",null,"計算終了後",null,"テキスト","PC",{"$nulls":5},"・データ駆動型研究アプローチ（予測・シミュレーション等）のために研究データを利用する\n・第三者が自らの研究データを比較評価するための参照先として研究データを利用する","① 研究データの信頼性向上への取組み：実験条件の追記、論文等出典情報の明記等\n② 提供者自身へのフィードバック：利用目的・成果公表時出典の明記、定期的な意見聴取等",null,"小原","実験"]
[3,null,"放射光X線回折生データ_2","X線のエネルギー、試料の厚み、組成、密度も記載","実験データ","レベル２\n(非公開）","データ所有者と連携して、さらなる研究の展開が期待される場合には公開","物質名、化学式、元素名","論文掲載時",null,"テキスト","(例)JSTCenrtal\n不規則系物質データベース１_1",{"$nulls":5},"・データ駆動型研究アプローチ（予測・シミュレーション等）のために研究データを利用する\n・第三者が自らの研究データを比較評価するための参照先として研究データを利用する","① 研究データの信頼性向上への取組み：実験条件の追記、論文等出典情報の明記等\n② 提供者自身へのフィードバック：利用目的・成果公表時出典の明記、定期的な意見聴取等",null,"小原","実験"]
[4,2,"***計算機実験、データ科学から得られた生データ_2","**のエネルギー、試料の厚み、組成、密度も記載","実験データ","レベル２\n(非公開）","・本データによる論文発表が見込まれているため、公開はその後（さきがけ研究終了までに公開予定）\n・将来（3年後）はレベル4での公開を目指す","＊＊物質\n＊＊化学式\n＊＊元素","論文掲載時","未定","CSVファイル","(例)JSTCenrtal\n不規則系物質データベース2_1",null,"　",null,null,null,"・データ駆動型研究アプローチ（予測・シミュレーション等）のために研究データを利用する\n・第三者が自らの研究データを比較評価するための参照先として研究データを利用する","① 研究データの信頼性向上への取組み：実験条件の追記、論文等出典情報の明記等\n② 提供者自身へのフィードバック：利用目的・成果公表時出典の明記、定期的な意見聴取等",null,"小原","実験"]
[5,3,"**検査用画像再構築生データ","**現場の検査・**構築用画像","実験データ","レベル３\n(非公開）","本データにより論文発表が複数見込まれ、公開はその後の予定（最終論文発表後１年程度）さらに企業との契約が既にある部分および今後関係しそうな部分に関しても非公開","３D\nモデル再構築\nステレオ、点群\n**現場",null,"　","画像：bmp　or低圧縮jpg","**学会**研究会ｻｰﾊﾞ\n\n","Robust surface marching by integrating edge segments,ISPRS Jounal,2014.6, DOI:10.5194,","JSTさきがけ＆**プロジェクト","Crest＊＊チーム・企業内・**学会**研究会","Cloud上(限定会員のみ）","**学会**研究会加入\n","・データ駆動型研究アプローチ（予測・シミュレーション等）のために研究データを利用する\n・第三者が自らの研究データを比較評価するための参照先として研究データを利用する","① 研究データの信頼性向上への取組み：実験条件の追記、論文等出典情報の明記等\n② 提供者自身へのフィードバック：利用目的・成果公表時出典の明記、定期的な意見聴取等",null,"小原","実験"]
[6,4,"秘密保持契約のため記載せず","－","－","レベル３\n(非公開）","企業と共同研究、秘密保持契約締結のため","－","－","－","－","－",null,"－","－","－","－","・データ駆動型研究アプローチ（予測・シミュレーション等）のために研究データを利用する\n・第三者が自らの研究データを比較評価するための参照先として研究データを利用する","① 研究データの信頼性向上への取組み：実験条件の追記、論文等出典情報の明記等\n② 提供者自身へのフィードバック：利用目的・成果公表時出典の明記、定期的な意見聴取等",null,"小原","実験"]
[7,null,"放射光X線回折から得られた構造因子S(Q)および二体分布関数g®","フーリエ変換のQ\n範囲,窓関数についても記載","実験データ","レベル４\n(公開）","原則として常に公開して、他の研究者のデータ駆動型研究アプローチに利用していただける",null,"データ解析終了後",null,"テキスト","NIMS　or\nJSTCentral　or　独自DB",null,null,null,"インターネット上で公開",null,"・データ駆動型研究アプローチ（予測・シミュレーション等）のために研究データを利用する\n・第三者が自らの研究データを比較評価するための参照先として研究データを利用する",null,null,"小原","実験"]
[8,5,"計算機実験、データ科学から得られた構造記述子データ","**関数, 配位数、角度分布関数、空隙量、バンドギャップ、**分布等","計算データ","レベル４\n(公開）","原則として常に公開して、他の研究者のデータ駆動型研究アプローチに利用していただける","**関数\n***シミュレーション","データ解析終了後",null,"主にXML形式（IBM DB2）","未定：NIMS　or　独自DB",null,null,null,"インターネット上で公開",null,"・データ駆動型研究アプローチ（予測・シミュレーション等）のために研究データを利用する\n・第三者が自らの研究データを比較評価するための参照先として研究データを利用する",null,"・データ内容に関してその信頼性やその利用に伴って生じた問題に責任は持てない。","小原","実験"]
[9,null,"第一原理計算の結果、実験結果",null,"実験データ・計算データ","レベル１\n(非公開）","当面は「レベル1 (非公開) 個人管理",null,"随時",null,"計算結果・測定結果として得られたLawデータ形式","現在使用しているワークステーション・PC",{"$nulls":8},"大久保","実験"]
[10,6,"**モデルDB","材料開発のための***法による***解析による材料組織コントロールデータ","計算データ","レベル５\n(公開）","＊＊大学：①学術機関リポジトリに登録、②掲載論文のAPC（Article Processing Charge）を負担、出版社ウェブサイトでオープンアクセス化、③ 学外機関リポジトリに登録","**法\n材料開発\n**エネルギー\n**定数","論文掲載時","＊＊大学が責任を持って永続的に保存","検討中","＊＊大学学術機関リポジトリ",null,null,null,"学外に向けて無料公開","・＊大学附属図書館にデータを提供する\n・提供するデータのファイル形式は問わない","・データ駆動型研究アプローチ（予測・シミュレーション等）のために研究データを利用する\n・第三者が自らの研究データを比較評価するための参照先として研究データを利用する",null,null,"塚田","理論"," "]
[11,null,"メタン水蒸気改質触媒実験結果データベース, メタン水蒸気改質触媒計算結果データベース",null,"実験データ(化学）","レベル１\n(非公開）","・本データによる論文発表が見込まれているため、公開はその後（さきがけ研究終了までに公開予定）\n・将来（3年後）はレベル4での公開を目指す",null,"2016年度～",null,"主にXML形式（IBM DB2）","qc-dbs.qc.sci.hokudai.ac.jp (HP DL380p Gen9)",{"$nulls":5},"・（将来）実験触媒研究の二次情報元としての利用\n・（将来）データを利用した研究による新規触媒開発の指針として利用",null,null,"小林","化学(理論）"]
[12,null,"各物質に対するタイトバインディング模型","有効模型そのもののデータベース","模型(物理）","レベル１\n(非公開）","将来的にはレベル３あるいは４への移行を検討中。",null,"・ 計算時期　",null,"　独自形式：各物質に対する計算が物質ごとに異なるディレクトリに入っている。有効模型を作るための計算への入出力が全て含まれる","　PC",{"$nulls":5},"・物理量間の相関などをみる、といったデータ科学的研究に利用する\n・実験値との比較、参照データとして利用する",null,"・ 将来的には電子格子相互作用、クーロン相互作用などのパラメータも含める予定\n・データ内容に関してその信頼性やその利用に伴って生じた問題に責任は持てない。保守、アップデートなどの保証はできない。","是常","理論"]
[13,null,"タイトバインディング模型計算によって得られた物理量","模型計算によって得られた物理量","模型(物理）","レベル１\n(非公開）","・現状は極めて重要な成果なので、公開は考えられないが、論文投稿後などにレベル3,4に移行することは可能。\n・将来的には公開できる部分を公開したいと考えている。",null,null,null,"現状独自形式、容易にCSVなどに変換可：Intrinsic Anomalous Hall conductivity, Dzyaloshinskii-Moriya 相互作用などの物理量","　PC",{"$nulls":5},"・物理量間の相関などをみる、といったデータ科学的研究に利用する\n・実験値との比較、参照データとして利用する",null,"・データ内容に関してその信頼性やその利用に伴って生じた問題に責任は持てない。保守、アップデートなどの保証はできない。","是常","理論"]
[14,null,"長時間第一原理分子動力学(DFT-MD)計算データ","長時間第一原理分子動力学(DFT-MD)計算データ","第一原理計算","レベル１\n(非公開）","本データにより論文発表が複数見込まれ、公開はその後の予定（最終論文発表後１年程度）さらに企業との契約が既にある部分および今後関係しそうな部分に関しても非公開",null,"計算終わり次第",null,"構造座標の逐次時間変化トラジェクトリ―データ（系中に存在する原子数分(数百-1千)の(元素名,x,y,z座標)の組の、さらに時間変化に伴う数の分（5万-50万ステップ分）の数値データ群）、さらにトラジェクトリ―データに対して解析を行ったことにより得られる数値データやスペクトルデータを含む。","現在は個人PCとスーパーコンピュータ上にデータが置いてある。将来的にはローカルのサーバーに保存する",{"$nulls":5},"・データ駆動型研究を行っている研究者にデータを提供し、共同研究の礎とする。\n・第三者が材料探索を行う際の参照データとして提供する。",null,"・データ内容に関してその信頼性やその利用に伴って生じた問題に責任は持てない。保守、アップデートなどの保証はできない。","袖山","計算"]
[15,null,"溶媒単分子量子化学計算データ",null,"計算データ","レベル４\n（公開）","本データにより論文発表が複数見込まれ、公開はその後の予定（最終論文発表後１年程度）さらに企業との契約が既にある部分および今後関係しそうな部分に関しても非公開",null,"未定",null,null,"未定：独自DBあるいはNIMSの可能性が高いと考えている。",{"$nulls":5},"・データ駆動型研究を行っている研究者にデータを提供し、共同研究の礎とする。\n・第三者が材料探索を行う際の参照データとして提供する。","① 研究データの信頼性向上への取組み：計算条件を詳細に記述する。さらに随時信頼性を向上させた計算結果へアップデートあるいはデータ追加を行うことを考えている。\n② 提供者自身へのフィードバック：データ科学者とはできるだけ共同研究したいと考えている。（共同研究者にのみ提供するデータも用意する。）また材料探索に使用した際には成果項表示に出典を明記してもらいたい。\n③ 継続的なデータ蓄積・アップデート・精度向上を実現する体制：個人研究の範囲で行うので特別な体制は整っていない。さきがけ研究継続中は定期的にデータを蓄積できるが、その後の継続性に関しては計算資源獲得のためのファンド獲得が重要なポイントとなるため、さきがけ研究期間中に本データベースの有用性をアピールしていく。\n",null,"袖山","計算"]
[16,7,"***データセット","***に対する機械学習予測ベンチマークのための二次データ\n","二次データ","レベル１\n(非公開）","二次データのため公開可能かは精査中。可能な場合、元データのように自身のweb サイトなどでオープンな形で公開する予定。",null,"未定",null,"各種分子情報フォーマット(xyz, mol/sdf, SMILES など)とラベルの数値データ","研究室内のプロジェクト用ワークステーション：***(名前）","論文: Sci Data. 2014 Aug 5;1:140022. doi: 10.1038/sdata.2014.22. 2014.\nQuantum chemistry structures and properties of 134 kilo molecules.",null,null,"http://quantum-machine.org/datasets/","・改変可能な状態で配布　→研究に使用した場合は引用を入れてもらう","・機械学習予測法の改善のためのベンチマークデータとしての用途",null,"　","瀧川","情報科学"]
[17,8,"＊＊解析アルゴリズム","・局所構造-局所物性相関解析計算ﾓｼﾞｭｰﾙ\n・**成分解析計算ﾓｼﾞｭｰﾙ\n・**物性探索計算ﾓｼﾞｭｰﾙ\n","計算モジュール","レベル４\n(公開）","方法論研究が主体となるため，アルゴリズムの実装コードを基本的に公開する．解析対象データを自分で生成することはほぼないため，使用したデータは共同研究者との兼ね合いでその都度公開・非公開の検討が必要となる．","・**物性・構造モデル\n・第一原理計算\n・機械学習\n・ベイズ最適化\n","都度",null,"・ソースコード\n・実行形式ファイル","個人webサーバー：***(名前）",{"$nulls":5},"・データがベンチマーク化できればデータ解析の研究者でも方法論研究に活用することができる．\n・コードを公開することで統計解析手法を他の研究者に利用してもらう，あるいは類似手法の検討時に比較対象とする","使用者がデータ公開元を引用などすることで公開者にも利益があることが望ましい．","・保守、アップデートなどの保証はできない。　","烏山","情報科学"]
[]
[null,null,"★上記例は、実験データ、計算データ、二次（中間）データ、解析ソフト（ソースコード）のレベル１～５についての記載例です。これを参考にして記入お願いいたします。"]
[null,null,"・本DMPは修正・追加等があった場合(ex.半期後等）記載し提出する。"]
[null,null,"・記入できないところ、決まっていないところ等は、未定、検討中、あるいは空欄でもOK。詳細が決まった時点で記入する。"]
[null,null,"・表に記入しきれない内容は、注釈1,2---,)をつけて別ページにデータNoと内容を記載"]
[null,null,"・表のデータと発表論文との紐付けは各領域にて発表リスト等で管理・把握すること"]
[]
[]
[null,null,"２．公開研究データの想定利用用途（公開予定、将来予測含む）"]
[null,null,"・データ駆動型研究アプローチ（予測・シミュレーション等）のために研究データを利用する"]
[null,null,"・第三者が自らの研究データを比較評価するための参照先として研究データを利用する"]
[null,null,"・物理量間の相関などをみる、といったデータ科学的研究に利用する"]
[null,null,"・物理量間の相関などをみる、といったデータ科学的研究に利用する"]
[null,null,"・データ駆動型研究を行っている研究者にデータを提供し、共同研究の礎とする。"]
[null,null,"・第三者が材料探索を行う際の参照データとして提供する。"]
[null,null,"・機械学習予測法の改善のためのベンチマークデータとしての用途"]
[null,null,"・データがベンチマーク化できればデータ解析の研究者でも方法論研究に活用することができる．"]
[null,null,"・コードを公開することで統計解析手法を他の研究者に利用してもらう，あるいは類似手法の検討時に比較対象とする"]
[null,null,"・（将来）実験触媒研究の二次情報元としての利用"]
[null,null,"・（将来）データを利用した研究による新規触媒開発の指針として利用"]
[]
[]
[]
[null,null,"３．公開研究データ（登録研究者）の利活用促進に向けた取り組み"]
[null,null,"研究データの信頼性向上への取組み：実験条件の追記、論文等出典情報の明記"]
[null,null,"提供者自身へのフィードバック：利用目的・成果公表時出典の明記、定期的な意見聴取"]
[null,null,"研究データの信頼性向上への取組み：計算条件を詳細に記述する。さらに随時信頼性を向上させた計算結果へアップデートあるいはデータ追加を行うことを考えている。"]
[null,null,"提供者自身へのフィードバック：データ科学者とはできるだけ共同研究したいと考えている。（共同研究者にのみ提供するデータも用意する。）また材料探索に使用した際には成果項表示に出典を明記してもらいたい。"]
[null,null,"継続的なデータ蓄積・アップデート・精度向上を実現する体制：個人研究の範囲で行うので特別な体制は整っていない。"]
[null,null,"さきがけ研究継続中は定期的にデータを蓄積できるが、その後の継続性に関しては計算資源獲得のためのファンド獲得が重要なポイントとなるため、さきがけ研究期間中に本データベースの有用性をアピールしていく。"]
[null,null,"使用者がデータ公開元を引用などすることで公開者にも利益があることが望ましい．"]

{"sheet":"記入表","index":6,"n_rows":64,"n_cols":23,"rows_kept":64,"cut":false,"hidden":true,"merged":[[62,3,62,15],[63,3,63,15],[59,3,59,15],[60,3,60,15],[61,3,61,15],[44,3,44,15],[45,3,45,15],[58,3,58,15],[46,3,46,15],[47,3,47,15],[48,3,48,19],[50,3,50,15],[51,3,51,15],[52,3,52,15],[53,3,53,15],[54,3,54,15],[55,3,55,15],[56,3,56,15],[57,3,57,15],[39,3,39,15],[40,3,40,15],[41,3,41,15],[42,3,42,15],[43,3,43,15],[32,3,32,19],[34,3,34,19],[36,3,36,15],[37,3,37,15],[38,3,38,15],[31,3,31,19],[9,12,10,12],[9,13,10,13],[9,14,10,14],[9,15,10,15],[9,18,10,18],[9,19,10,19],[9,20,10,20],[9,21,10,21],[30,3,30,19],[9,5,10,5],[9,16,10,16],[9,17,10,17],[9,6,10,6],[9,7,10,7],[9,8,10,8],[9,9,10,9],[9,10,10,10],[9,11,10,11],[9,0,10,0],[9,1,10,1],[9,2,10,2],[9,3,10,3],[9,4,10,4]]}
[null,null,null,"　　　領域　（　　　チーム　　　グループ）　データマネジメントプラン　"]
[]
[{"$nulls":5},"〇管理方針：以下の5段階とする"]
[{"$nulls":5},"★非公開データ",{"$nulls":4},"レベル１：","個人管理(論文のエビデンス）"]
[{"$nulls":10},"レベル２：","機関リポジトリに登録(キーワード付与）"]
[{"$nulls":10},"レベル３：","共同研究者、研究プロジェクト等でのデータ共有"]
[{"$nulls":5},"★公開データ",{"$nulls":4},"レベル４：","学協会、公的DB、私的DB等に登録"]
[{"$nulls":10},"レベル５：","レベル４に加え、恒常的サービス、研究終了後に維持管理活用を行う機関"]
[null,null,null,"１．研究データの保存・管理、公開/非公開に係わる方針と公開可能データの提供方法・体制"]
["番号","ﾃﾞｰﾀNo.","分類","登録データ名","収録データ概要","レベル\n（公開/非公開）","公開・非公開の方針","キーワード","登録時期","データ維持\n保存期間\n管理内容等","データ\nフォーマット","登録場所\n（個人PC名、登録サーバー名など）","関係論文\n(採択後記入）","共同研究・\nﾌﾟﾛｼﾞｪｸﾄ名","共有条件","公開方法\n（URLを記載）","登録条件","公開研究データの想定利用用途","公開研究データの利活用促進に向けた取り組み（研究者自身の取り組み）","その他特記事項／備考","名前","分野"]
[]
[1,1,"　","　","　","　","　","　","　　","　","　","　",{"$nulls":5},"・データ駆動型研究アプローチ（予測・シミュレーション等）のために研究データを利用する\n・第三者が自らの研究データを比較評価するための参照先として研究データを利用する","① 研究データの信頼性向上への取組み：実験条件の追記、論文等出典情報の明記等\n② 提供者自身へのフィードバック：利用目的・成果公表時出典の明記、定期的な意見聴取等",null,"小原","実験"]
[2,null,"実験データ","計算機実験、データ科学から得られた生データ","X線のエネルギー、試料の厚み、組成、密度も記載","レベル１\n(非公開）","データ所有者と連携して、さらなる研究の展開が期待される場合には公開",null,"計算終了後",null,"テキスト","PC",{"$nulls":5},"・データ駆動型研究アプローチ（予測・シミュレーション等）のために研究データを利用する\n・第三者が自らの研究データを比較評価するための参照先として研究データを利用する","① 研究データの信頼性向上への取組み：実験条件の追記、論文等出典情報の明記等\n② 提供者自身へのフィードバック：利用目的・成果公表時出典の明記、定期的な意見聴取等",null,"小原","実験"]
[3,null,"実験データ","放射光X線回折生データ_2","X線のエネルギー、試料の厚み、組成、密度も記載","レベル２\n(非公開）","データ所有者と連携して、さらなる研究の展開が期待される場合には公開","物質名、化学式、元素名","論文掲載時",null,"テキスト","(例)JSTCenrtal\n不規則系物質データベース１_1",{"$nulls":5},"・データ駆動型研究アプローチ（予測・シミュレーション等）のために研究データを利用する\n・第三者が自らの研究データを比較評価するための参照先として研究データを利用する","① 研究データの信頼性向上への取組み：実験条件の追記、論文等出典情報の明記等\n② 提供者自身へのフィードバック：利用目的・成果公表時出典の明記、定期的な意見聴取等",null,"小原","実験"]
[4,2,"　","　","　","　","　","　","　","　","　","　",null,"　",null,null,null,"・データ駆動型研究アプローチ（予測・シミュレーション等）のために研究データを利用する\n・第三者が自らの研究データを比較評価するための参照先として研究データを利用する","① 研究データの信頼性向上への取組み：実験条件の追記、論文等出典情報の明記等\n② 提供者自身へのフィードバック：利用目的・成果公表時出典の明記、定期的な意見聴取等",null,"小原","実験"]
[5,3,"　","　","　","　","　","　","　","　","　","　","　","　","　","　","　","　","　","　","小原","実験"]
[6,4,"　","　","　","　","　","　","　","　","　","　","　","　","　","　","　","　","　","　","小原","実験"]
[7,null,"　","　","　","　","　","　","　","　","　","　","　","　","　","　","　","　","　","　","小原","実験"]
[8,5,"　","　","　","　","　","　","　","　","　","　","　","　","　","　","　","　","　","　","小原","実験"]
[9,null,"　","　","　","　","　","　","　","　","　","　","　","　","　","　","　","　","　","　","大久保","実験"]
[10,6,"　","　","　","　","　","　","　","　","　","　","　","　","　","　","　","　","　","　","塚田","理論"," "]
[11,null,"　","　","　","　","　","　","　","　","　","　","　","　","　","　","　","　","　","　","小林","化学(理論）"]
[12,null,"　","　","　","　","　","　","　","　","　","　","　","　","　","　","　","　","　","　","是常","理論"]
[13,null,"　","　","　","　","　","　","　","　","　","　","　","　","　","　","　","　","　","　","是常","理論"]
[14,null,"　","　","　","　","　","　","　","　","　","　","　","　","　","　","　","　","　","　","袖山","計算"]
[15,null,"　","　","　","　","　","　","　","　","　","　","　","　","　","　","　","　","　","　","袖山","計算"]
[16,7,"　","　","　","　","　","　","　","　","　","　","　","　","　","　","　","　","　","　","瀧川","情報科学"]
[17,8,"　","　","　","　","　","　","　","　","　","　","　","　","　","　","　","　","　","　","烏山","情報科学"]
[]
[null,null,null,"　"]
[null,null,"注）","・本DMPは年度ごとに記載し提出する。"]
[null,null,null,"・記入できないところ、決まっていないところ等は、未定、検討中、あるいは空欄でもOK。詳細が決まった時点で記入する。"]
[null,null,null,"・表に記入しきれない内容は、注釈1,2---,)をつけて別ページにデータNoと内容を記載"]
[]
[]
[]
[null,null,"ﾃﾞｰﾀNo.","２．公開研究データの想定利用用途（公開予定、将来予測含む）"]
[null,null,"　","　"]
[null,null,"　","　"]
[null,null,"　","　"]
[null,null,"　","　"]
[null,null,"　","　"]
[null,null,"　","　"]
[null,null,"　","　"]
[null,null,"　","　"]
[null,null,"　","　"]
[null,null,"　","　"]
[null,null,"　","　"]
[]
[]
[null,null,"　"]
[null,null,"ﾃﾞｰﾀNo.","３．公開研究データ（登録研究者）の利活用促進に向けた取り組み"]
[null,null,"　","　"]
[null,null,"　","　"]
[null,null,"　","　"]
[null,null,"　","　"]
[null,null,"　","　"]
[null,null,"　","　"]
[null,null,"　","　"]
[null,null,"　"]
[null,null,"　"]
[]
[null,null,"　"]
[null,null,"　"]

{"sheet":"Work","index":7,"n_rows":68,"n_cols":23,"rows_kept":68,"cut":false,"hidden":true,"merged":[[9,0,10,0],[9,1,10,1],[9,2,10,2],[9,3,10,3],[9,4,10,4],[9,14,10,14],[9,15,10,15],[9,16,10,16],[9,20,10,20],[9,5,10,5],[9,18,10,18],[9,19,10,19],[9,17,10,17],[9,6,10,6],[9,7,10,7],[9,8,10,8],[9,9,10,9],[9,10,10,10],[9,11,10,11],[9,12,10,12],[9,21,10,21],[30,3,30,19],[45,3,45,15],[32,3,32,19],[34,3,34,19],[36,3,36,15],[37,3,37,15],[38,3,38,15],[39,3,39,15],[40,3,40,15],[41,3,41,15],[42,3,42,15],[43,3,43,15],[44,3,44,15],[31,3,31,19],[9,13,10,13],[58,3,58,15],[46,3,46,15],[47,3,47,15],[48,3,48,19],[50,3,50,15],[51,3,51,15],[52,3,52,15],[53,3,53,15],[54,3,54,15],[55,3,55,15],[56,3,56,15],[57,3,57,15],[65,3,65,15],[66,3,66,15],[67,3,67,15],[59,3,59,15],[60,3,60,15],[61,3,61,15],[62,3,62,15],[63,3,63,15],[64,3,64,15]]}
[null,null,null,"　　　領域　（　　　チーム　　　グループ）　データマネジメントプラン　"]
[]
[{"$nulls":5},"〇管理方針：以下の5段階とする"]
[{"$nulls":5},"★非公開データ",{"$nulls":4},"レベル１：","個人管理(論文のエビデンス）"]
[{"$nulls":10},"レベル２：","機関リポジトリに登録(キーワード付与）"]
[{"$nulls":10},"レベル３：","共同研究者、研究プロジェクト等でのデータ共有"]
[{"$nulls":5},"★公開データ",{"$nulls":4},"レベル４：","学協会、公的DB、私的DB等に登録"]
[{"$nulls":10},"レベル５：","レベル４に加え、恒常的サービス、研究終了後に維持管理活用を行う機関"]
[null,null,null,"１．研究データの保存・管理、公開/非公開に係わる方針と公開可能データの提供方法・体制"]
["番号","ﾃﾞｰﾀNo.","分類","登録データ名","収録データ概要","レベル\n（公開/非公開）","公開・非公開の方針","キーワード","登録時期","データ維持\n保存期間\n管理内容等","データ\nフォーマット","登録場所\n（個人PC名、登録サーバー名など）","関係論文\n(採択後記入）","共同研究・\nﾌﾟﾛｼﾞｪｸﾄ名","共有条件","公開方法\n（URLを記載）","登録条件","公開研究データの想定利用用途","公開研究データの利活用促進に向けた取り組み（研究者自身の取り組み）","その他特記事項／備考","名前","分野"]
[]
[1,1,"　","　","　","　","　","　","　　","　","　","　",{"$nulls":5},"・データ駆動型研究アプローチ（予測・シミュレーション等）のために研究データを利用する\n・第三者が自らの研究データを比較評価するための参照先として研究データを利用する","① 研究データの信頼性向上への取組み：実験条件の追記、論文等出典情報の明記等\n② 提供者自身へのフィードバック：利用目的・成果公表時出典の明記、定期的な意見聴取等",null,"小原","実験"]
[2,null,"実験データ","計算機実験、データ科学から得られた生データ","X線のエネルギー、試料の厚み、組成、密度も記載","レベル１\n(非公開）","データ所有者と連携して、さらなる研究の展開が期待される場合には公開",null,"計算終了後",null,"テキスト","PC",{"$nulls":5},"・データ駆動型研究アプローチ（予測・シミュレーション等）のために研究データを利用する\n・第三者が自らの研究データを比較評価するための参照先として研究データを利用する","① 研究データの信頼性向上への取組み：実験条件の追記、論文等出典情報の明記等\n② 提供者自身へのフィードバック：利用目的・成果公表時出典の明記、定期的な意見聴取等",null,"小原","実験"]
[3,null,"実験データ","放射光X線回折生データ_2","X線のエネルギー、試料の厚み、組成、密度も記載","レベル２\n(非公開）","データ所有者と連携して、さらなる研究の展開が期待される場合には公開","物質名、化学式、元素名","論文掲載時",null,"テキスト","(例)JSTCenrtal\n不規則系物質データベース１_1",{"$nulls":5},"・データ駆動型研究アプローチ（予測・シミュレーション等）のために研究データを利用する\n・第三者が自らの研究データを比較評価するための参照先として研究データを利用する","① 研究データの信頼性向上への取組み：実験条件の追記、論文等出典情報の明記等\n② 提供者自身へのフィードバック：利用目的・成果公表時出典の明記、定期的な意見聴取等",null,"小原","実験"]
[4,2,"　","　","　","　","　","　","　","　","　","　",null,"　",null,null,null,"・データ駆動型研究アプローチ（予測・シミュレーション等）のために研究データを利用する\n・第三者が自らの研究データを比較評価するための参照先として研究データを利用する","① 研究データの信頼性向上への取組み：実験条件の追記、論文等出典情報の明記等\n② 提供者自身へのフィードバック：利用目的・成果公表時出典の明記、定期的な意見聴取等",null,"小原","実験"]
[5,3,"　","　","　","　","　","　","　","　","　","　","　","　","　","　","　","　","　","　","小原","実験"]
[6,4,"　","　","　","　","　","　","　","　","　","　","　","　","　","　","　","　","　","　","小原","実験"]
[7,null,"　","　","　","　","　","　","　","　","　","　","　","　","　","　","　","　","　","　","小原","実験"]
[8,5,"　","　","　","　","　","　","　","　","　","　","　","　","　","　","　","　","　","　","小原","実験"]
[9,null,"　","　","　","　","　","　","　","　","　","　","　","　","　","　","　","　","　","　","大久保","実験"]
[10,6,"　","　","　","　","　","　","　","　","　","　","　","　","　","　","　","　","　","　","塚田","理論"," "]
[11,null,"　","　","　","　","　","　","　","　","　","　","　","　","　","　","　","　","　","　","小林","化学(理論）"]
[12,null,"　","　","　","　","　","　","　","　","　","　","　","　","　","　","　","　","　","　","是常","理論"]
[13,null,"　","　","　","　","　","　","　","　","　","　","　","　","　","　","　","　","　","　","是常","理論"]
[14,null,"　","　","　","　","　","　","　","　","　","　","　","　","　","　","　","　","　","　","袖山","計算"]
[15,null,"　","　","　","　","　","　","　","　","　","　","　","　","　","　","　","　","　","　","袖山","計算"]
[16,7,"　","　","　","　","　","　","　","　","　","　","　","　","　","　","　","　","　","　","瀧川","情報科学"]
[17,8,"　","　","　","　","　","　","　","　","　","　","　","　","　","　","　","　","　","　","烏山","情報科学"]
[]
[null,null,null,"　"]
[null,null,"注）","・本DMPは年度ごとに記載し提出する。"]
[null,null,null,"・記入できないところ、決まっていないところ等は、未定、検討中、あるいは空欄でもOK。詳細が決まった時点で記入する。"]
[null,null,null,"・表に記入しきれない内容は、注釈1,2---,)をつけて別ページにデータNoと内容を記載"]
[]
[]
[]
[null,null,"ﾃﾞｰﾀNo.","２．公開研究データの想定利用用途（公開予定、将来予測含む）"]
[null,null,"　","　"]
[null,null,"　","　"]
[null,null,"　","　"]
[null,null,"　","　"]
[null,null,"　","　"]
[null,null,"　","　"]
[null,null,"　","　"]
[null,null,"　","　"]
[null,null,"　","　"]
[null,null,"　","　"]
[null,null,"　","　"]
[]
[]
[null,null,"　"]
[null,null,"ﾃﾞｰﾀNo.","３．公開研究データ（登録研究者）の利活用促進に向けた取り組み"]
[null,null,"　","　"]
[null,null,"　","　"]
[null,null,"　","　"]
[null,null,"　","　"]
[null,null,"　","　"]
[null,null,"　","　"]
[null,null,"　","　"]
[null,null,"　"]
[null,null,"　"]
[]
[null,null,"ﾃﾞｰﾀNo.","４．関係論文・発表等　（採択・発表後記入）"]
[null,null,"　","　"]
[null,null,"　","　"]
[null,null,"　","　"]
[null,null,"　"]
[null,null,"　"]